fUSD/lending_fUSD_20260521
["ID","MTS","AMOUNT","RATE_DAILY","PERIOD"]
[422773201,1779376238000,-260.40317034,0.00014999,2]
[422773198,1779376238000,-500.0,0.00014999,2]
[422773206,1779376238000,-60.92020687,0.00014999,2]
[422773275,1779376240000,-500.0,0.00014999,2]
[422773267,1779376240000,-500.0,0.00014999,2]
[422773272,1779376240000,-548.38957397,0.00014999,2]
[422773285,1779376240000,-500.0,0.00014999,2]
[422773266,1779376240000,-500.0,0.00014999,2]
[422773268,1779376240000,-500.0,0.00014999,2]
[422773273,1779376240000,-500.0,0.00014999,2]
[422773271,1779376240000,-500.0,0.00014999,2]
[422773278,1779376240000,-500.0,0.00014999,2]
[422773270,1779376240000,-500.0,0.00014999,2]
[422773276,1779376240000,-500.0,0.00014999,2]
[422773283,1779376240000,-500.0,0.00014999,2]
[422773284,1779376240000,-261.00220235,0.00014999,2]
[422773274,1779376240000,-500.0,0.00014999,2]
[422773288,1779376240000,-500.0,0.00014999,2]
[422773282,1779376240000,-500.0,0.00014999,2]
[422773287,1779376240000,-500.0,0.00014999,2]
[422773269,1779376240000,-500.0,0.00014999,2]
[422773264,1779376240000,-500.0,0.00014999,2]
[422773254,1779376240000,-500.0,0.00014999,2]
[422773263,1779376240000,-500.0,0.00014999,2]
[422773280,1779376240000,-500.0,0.00014999,2]
[422773246,1779376240000,-500.0,0.00014999,2]
[422773245,1779376240000,-361.03020687,0.00014999,2]
[422773248,1779376240000,-500.0,0.00014999,2]
[422773247,1779376240000,-424.8,0.00014999,2]
[422773249,1779376240000,-500.0,0.00014999,2]
[422773252,1779376240000,-515.4813897,0.00014999,2]
[422773251,1779376240000,-348.71281634,0.00014999,2]
[422773265,1779376240000,-500.0,0.00014999,2]
[422773253,1779376240000,-500.0,0.00014999,2]
[422773258,1779376240000,-1109.0055197,0.00014999,2]
[422773255,1779376240000,-500.0,0.00014999,2]
[422773260,1779376240000,-184.45396518,0.00014999,2]
[422773250,1779376240000,-500.0,0.00014999,2]
[422773262,1779376240000,-500.0,0.00014999,2]
[422773256,1779376240000,-500.0,0.00014999,2]
[422773261,1779376240000,-500.0,0.00014999,2]
[422773257,1779376240000,-209.5,0.00014999,2]
[422773259,1779376240000,-500.0,0.00014999,2]
[422773279,1779376240000,-500.0,0.00014999,2]
[422773297,1779376240000,-500.0,0.00014999,2]
[422773281,1779376240000,-238.99779765,0.00014999,2]
[422773310,1779376240000,-500.0,0.00014999,2]
[422773309,1779376240000,-500.0,0.00014999,2]
[422773311,1779376240000,-500.0,0.00014999,2]
[422773312,1779376240000,-500.0,0.00014999,2]
[422773316,1779376240000,-500.0,0.00014999,2]
[422773318,1779376240000,-500.0,0.00014999,2]
[422773317,1779376240000,-500.0,0.00014999,2]
[422773315,1779376240000,-201.28143198,0.00014999,2]
[422773320,1779376240000,-500.0,0.00014999,2]
[422773328,1779376240000,-300.0,0.00014999,2]
[422773323,1779376240000,-300.0,0.00014999,2]
[422773321,1779376240000,-158.20432752,0.00014999,2]
[422773330,1779376240000,-248.86885667,0.00014999,2]
[422773332,1779376240000,-2614689.94673551,0.00015,2]
[422773319,1779376240000,-500.0,0.00014999,2]
[422773325,1779376240000,-300.0,0.00014999,2]
[422773337,1779376240000,-133442.5459872,0.00015,2]
[422773308,1779376240000,-500.0,0.00014999,2]
[422773305,1779376240000,-500.0,0.00014999,2]
[422773314,1779376240000,-500.0,0.00014999,2]
[422773304,1779376240000,-500.0,0.00014999,2]
[422773286,1779376240000,-500.0,0.00014999,2]
[422773289,1779376240000,-500.0,0.00014999,2]
[422773290,1779376240000,-500.0,0.00014999,2]
[422773292,1779376240000,-500.0,0.00014999,2]
[422773299,1779376240000,-500.0,0.00014999,2]
[422773298,1779376240000,-500.0,0.00014999,2]
[422773303,1779376240000,-500.0,0.00014999,2]
[422773293,1779376240000,-500.0,0.00014999,2]
[422773300,1779376240000,-500.0,0.00014999,2]
[422773295,1779376240000,-500.0,0.00014999,2]
[422773301,1779376240000,-500.0,0.00014999,2]
[422773294,1779376240000,-500.0,0.00014999,2]
[422773291,1779376240000,-500.0,0.00014999,2]
[422773302,1779376240000,-500.0,0.00014999,2]
[422773306,1779376240000,-500.0,0.00014999,2]
[422773313,1779376240000,-500.0,0.00014999,2]
[422773307,1779376240000,-500.0,0.00014999,2]
[422773296,1779376240000,-500.0,0.00014999,2]
[422773277,1779376240000,-500.0,0.00014999,2]
[422773395,1779376243000,-55.246695,0.00015,2]
[422773400,1779376243000,-1718.45258,0.00015,2]
[422773398,1779376243000,-11516.51194355,0.00015,2]
[422773396,1779376243000,-110705.6970225,0.00015,2]
[422773397,1779376243000,-25994.08831578,0.00015,2]
[422773438,1779376245000,-1539.83879468,0.00015,2]
[422773442,1779376246000,-2036.71631841,0.00015,2]
[422773440,1779376246000,-1795.50999023,0.00015,2]
[422773439,1779376246000,-357.746615,0.00015,2]
[422773441,1779376246000,-8211.465144,0.00015,2]
[422773513,1779376575000,169.05,7.761e-05,2]
[422773526,1779376947000,200.09987476,0.0002,120]
[422773530,1779377340000,1000.0,0.00028766,120]
[422773553,1779377432000,-433.5,0.00014497,2]
[422773556,1779377432000,-700.0,0.00014575,2]
[422773557,1779377432000,-378.43060491,0.000147,2]
[422773558,1779377432000,-190.1,0.000147,2]
[422773560,1779377432000,-215.23956962,0.00014753,2]
[422773559,1779377432000,-16319.3985,0.000147,2]
[422773563,1779377432000,-5443.4393,0.000148,2]
[422773581,1779377432000,-640.52338063,0.00014999,2]
[422773564,1779377432000,-300.62772343,0.000148,2]
[422773555,1779377432000,-300.45782799,0.000145,2]
[422773562,1779377432000,-150.0,0.00014799,2]
[422773566,1779377432000,-54097.601,0.000148,2]
[422773567,1779377432000,-1814.4355,0.000148,2]
[422773568,1779377432000,-10000.0,0.000149,2]
[422773570,1779377432000,-164.29813333,0.000149,2]
[422773569,1779377432000,-5000.0,0.000149,2]
[422773561,1779377432000,-273.006,0.00014799,2]
[422773552,1779377432000,-913.62,0.00014497,2]
[422773549,1779377432000,-152.0,0.00014414,7]
[422773551,1779377432000,-678.54,0.00014495,2]
[422773534,1779377432000,-378.43060492,0.00013674,2]
[422773535,1779377432000,-166.66,0.00013699,2]
[422773537,1779377432000,-1682.30867738,0.00013736,2]
[422773538,1779377432000,-587.02555392,0.00013736,2]
[422773539,1779377432000,-300.0,0.00013774,2]
[422773540,1779377432000,-178.41,0.00013829,2]
[422773536,1779377432000,-230.6657687,0.00013736,2]
[422773554,1779377432000,-6131.18,0.00014497,2]
[422773543,1779377432000,-1200.0,0.00013989,2]
[422773542,1779377432000,-300.0,0.00013989,2]
[422773544,1779377432000,-5711.74051288,0.0001399,2]
[422773545,1779377432000,-250.0,0.00014,2]
[422773546,1779377432000,-300.0,0.00014045,2]
[422773548,1779377432000,-1147.71,0.00014314,2]
[422773547,1779377432000,-378.43060491,0.00014187,2]
[422773550,1779377432000,-177.05,0.00014465,2]
[422773541,1779377432000,-438.0,0.00013989,2]
[422773571,1779377432000,-2113.78244042,0.000149,2]
[422773593,1779377432000,-500.0,0.00014999,2]
[422773577,1779377432000,-500.0,0.00014999,2]
[422773618,1779377432000,-500.0,0.00014999,2]
[422773622,1779377432000,-500.0,0.00014999,2]
[422773626,1779377432000,-500.0,0.00014999,2]
[422773616,1779377432000,-500.0,0.00014999,2]
[422773620,1779377432000,-500.0,0.00014999,2]
[422773624,1779377432000,-500.0,0.00014999,2]
[422773639,1779377432000,-500.0,0.00014999,2]
[422773635,1779377432000,-500.0,0.00014999,2]
[422773637,1779377432000,-400.44866296,0.00014999,2]
[422773642,1779377432000,-500.0,0.00014999,2]
[422773653,1779377432000,-32862.41969525,0.00015,2]
[422773656,1779377432000,-2762.065051,0.00015,2]
[422773644,1779377432000,-646.77472674,0.00014999,2]
[422773649,1779377432000,-2622.9759273,0.00015,2]
[422773646,1779377432000,-434552.16689249,0.00015,2]
[422773633,1779377432000,-500.0,0.00014999,2]
[422773631,1779377432000,-460.88402034,0.00014999,2]
[422773651,1779377432000,-33938.39856517,0.00015,2]
[422773614,1779377432000,-500.0,0.00014999,2]
[422773628,1779377432000,-500.0,0.00014999,2]
[422773575,1779377432000,-1831.19039369,0.00014999,2]
[422773579,1779377432000,-195.85706374,0.00014999,2]
[422773583,1779377432000,-348.15679914,0.00014999,2]
[422773585,1779377432000,-383.97539947,0.00014999,2]
[422773587,1779377432000,-500.0,0.00014999,2]
[422773589,1779377432000,-500.0,0.00014999,2]
[422773591,1779377432000,-500.0,0.00014999,2]
[422773573,1779377432000,-151.0,0.00014997,2]
[422773599,1779377432000,-500.0,0.00014999,2]
[422773597,1779377432000,-500.0,0.00014999,2]
[422773605,1779377432000,-500.0,0.00014999,2]
[422773608,1779377432000,-500.0,0.00014999,2]
[422773601,1779377432000,-342.00406976,0.00014999,2]
[422773603,1779377432000,-500.0,0.00014999,2]
[422773610,1779377432000,-500.0,0.00014999,2]
[422773612,1779377432000,-500.0,0.00014999,2]
[422773595,1779377432000,-500.0,0.00014999,2]
[422773921,1779377438000,-6489.22263852,0.000149,2]
[422773922,1779377438000,-1134.74073243,0.00015,2]
[422773924,1779377438000,-3575.51044018,0.00015,2]
[422773925,1779377438000,-596.79223375,0.00015,2]
[422773923,1779377438000,-25368.79028356,0.00015,2]
[422773946,1779377440000,-386.35690104,0.00015,2]
[422773945,1779377440000,-1494.6312169,0.00015,2]
[422773944,1779377440000,-2020.32634346,0.00015,2]
[422773953,1779377443000,-727.0,0.00015,2]
[422773954,1779377443000,-3121.60053612,0.00015,2]
[422773955,1779377443000,-2858.0,0.00015,2]
[422773956,1779377443000,-344.0,0.00015,2]
[422773958,1779377443000,-316.220239,0.00015,2]
[422773957,1779377443000,-662.37194539,0.00015,2]
[422773959,1779377443000,-676.10951176,0.00015,2]
[422773960,1779377443000,-941.94160441,0.00015,2]
[422773967,1779377446000,-22082.90032431,0.000147,2]
[422773965,1779377446000,-2267.20397564,0.000147,2]
[422773966,1779377446000,-775.07192143,0.000147,2]
[422773964,1779377446000,-459.23641309,0.000147,2]
[422773963,1779377446000,169.05,7.764e-05,2]
[422773962,1779377446000,-7775.600678,0.000147,2]
[422773961,1779377446000,-152.0,0.00014383,7]
[422773972,1779377954000,-6584.62,0.00013786,2]
[422773973,1779378096000,180.92,0.00013739,2]
[422773974,1779378114000,182.49,0.00014,2]
[422773975,1779378196000,250.0,0.00014,2]
[422773976,1779378232000,1423.46,0.00013712,2]
[422773978,1779378262000,560.48,0.00013549,2]
[422773979,1779378302000,200.0,0.00013699,2]
[422773980,1779378401000,-163.45,0.00014054,2]
[422773981,1779378401000,-764.41565123,0.00014054,2]
[422773982,1779378520000,1339.41,0.00013585,2]
[422773983,1779378523000,237.77,0.00013585,3]
[422773984,1779378530000,1016.7,0.00013585,2]
[422773987,1779378541000,166.66,0.00013836,2]
[422773986,1779378541000,166.66,0.00013699,2]
[422773985,1779378541000,1000.0,0.00028765,120]
[422773988,1779378541000,166.66,0.00013973,2]
[422773989,1779378574000,150.0,0.0001384,2]
[422773992,1779378632000,-1727.60365123,0.00014065,2]
[422773991,1779378632000,-659.04434877,0.00014054,2]
[422773993,1779378632000,-675.352,0.00014065,2]
[422773994,1779378632000,-97.04434877,0.00014065,2]
[422773996,1779378632000,-51.64976454,0.00014077,2]
[422773999,1779378632000,-158.35657867,0.00014099,2]
[422773998,1779378632000,-141.35023546,0.00014077,2]
[422773995,1779378632000,-300.0,0.00014065,2]
[422774006,1779378632000,-166.66,0.0001411,2]
[422774005,1779378632000,-1610.5603475,0.00014099,2]
[422774007,1779378632000,-193.0,0.00014113,2]
[422774008,1779378632000,-277.48625205,0.00014113,2]
[422774009,1779378632000,-177.04,0.00014143,2]
[422774011,1779378632000,-324.90543306,0.000142,5]
[422774010,1779378632000,-150.0,0.000142,2]
[422774004,1779378632000,-731.08307383,0.00014099,2]
[422774022,1779378633000,-300.0,0.00014399,2]
[422774018,1779378633000,-152.0,0.00014383,7]
[422774015,1779378633000,-2300.0,0.000143,5]
[422774013,1779378633000,-200.0,0.000142,5]
[422774014,1779378633000,-166.66,0.00014247,2]
[422774017,1779378633000,-232.0,0.0001434,2]
[422774012,1779378633000,-775.09456694,0.000142,5]
[422774019,1779378633000,-166.66,0.00014384,2]
[422774016,1779378633000,-400.0,0.000143,5]
[422774021,1779378633000,-1423.46,0.00014397,2]
[422774020,1779378633000,-1200.0,0.00014396,2]
[422774028,1779378633000,-2500.0,0.000146,2]
[422774024,1779378633000,-700.0,0.000144,5]
[422774029,1779378633000,-253.03669896,0.000146,2]
[422774023,1779378633000,-3400.0,0.000144,5]
[422774027,1779378633000,-150.0,0.00014599,2]
[422774025,1779378633000,-4600.0,0.000145,5]
[422774030,1779378633000,-5700.0,0.000146,5]
[422774031,1779378633000,-1200.0,0.000146,5]
[422774033,1779378633000,-79871.68176402,0.00014667,2]
[422774032,1779378633000,-253.03669893,0.00014633,2]
[422774026,1779378633000,-900.0,0.000145,5]
[422774102,1779378638000,-384.33383196,0.000149,2]
[422774100,1779378638000,-384.33383196,0.000149,2]
[422774101,1779378638000,-384.33383196,0.000149,2]
[422774115,1779378638000,-151.0,0.00014997,2]
[422774111,1779378638000,-223.49678951,0.0001499,2]
[422774105,1779378638000,-5000.0,0.000149,2]
[422774108,1779378638000,-200.0,0.000149,5]
[422774107,1779378638000,-11957.55484901,0.000149,2]
[422774103,1779378638000,-982.6793917,0.000149,2]
[422774106,1779378638000,-1100.0,0.000149,5]
[422774104,1779378638000,-384.33383196,0.000149,2]
[422774098,1779378638000,-384.33383196,0.000149,2]
[422774093,1779378638000,-9689.5434408,0.00014726,2]
[422774096,1779378638000,-200.0,0.000148,5]
[422774092,1779378638000,-253.03669893,0.000147,2]
[422774095,1779378638000,-1100.0,0.000148,5]
[422774094,1779378638000,-1423.46,0.0001474,2]
[422774091,1779378638000,-200.0,0.000147,5]
[422774090,1779378638000,-1100.0,0.000147,5]
[422774089,1779378638000,-500.0,0.00014699,2]
[422774087,1779378638000,-2637.31151608,0.00014667,2]
[422774085,1779378638000,-2037.3742,0.000145,2]
[422774088,1779378638000,-304.14293626,0.00014699,2]
[422774086,1779378638000,-253.03669893,0.00014667,2]
[422774110,1779378638000,-223.49678951,0.0001499,2]
[422774097,1779378638000,-384.33383196,0.00014899,2]
[422774109,1779378638000,-550.37653087,0.0001499,2]
[422774165,1779378638000,-163.1835341,0.00015,2]
[422774117,1779378638000,-500.0,0.00014999,2]
[422774113,1779378638000,-223.49678951,0.0001499,2]
[422774167,1779378638000,-151.0,0.00015,2]
[422774169,1779378638000,-151.0,0.00015,2]
[422774162,1779378638000,-5007.0202974,0.00015,2]
[422774156,1779378638000,-9317.0153031,0.00015,2]
[422774138,1779378638000,-892.0,0.00015,5]
[422774148,1779378638000,-4587433.24805833,0.00015,2]
[422774159,1779378638000,-159.6429583,0.00015,2]
[422774153,1779378638000,-351.15114035,0.00015,2]
[422774146,1779378638000,-264.68871957,0.00015,2]
[422774144,1779378638000,-209.19230367,0.00015,2]
[422774142,1779378638000,-1309.77,0.00015,2]
[422774140,1779378638000,-10543293.59503183,0.00015,2]
[422774150,1779378638000,-691308.15482299,0.00015,2]
[422774130,1779378638000,-500.0,0.00014999,2]
[422774122,1779378638000,-500.0,0.00014999,2]
[422774131,1779378638000,-500.0,0.00014999,2]
[422774134,1779378638000,-151.96162418,0.00014999,2]
[422774119,1779378638000,-243.7097594,0.00014999,2]
[422774136,1779378638000,-880.0,0.00015,5]
[422774125,1779378638000,-500.0,0.00014999,2]
[422774121,1779378638000,-268.78277963,0.00014999,2]
[422774123,1779378638000,-500.0,0.00014999,2]
[422774124,1779378638000,-500.0,0.00014999,2]
[422774128,1779378638000,-500.0,0.00014999,2]
[422774127,1779378638000,-500.0,0.00014999,2]
[422774126,1779378638000,-339.13868278,0.00014999,2]
[422774261,1779378639000,-810.885163,0.00015068,2]
[422774262,1779378639000,-810.885163,0.00015068,2]
[422774250,1779378639000,-900.0,0.00015068,2]
[422774245,1779378639000,-150.0,0.00015003,2]
[422774235,1779378639000,-424.933373,0.00015,2]
[422774247,1779378639000,-1540.50200059,0.00015063,2]
[422774248,1779378639000,-550.37653087,0.00015067,2]
[422774244,1779378639000,-151.0,0.00015,2]
[422774233,1779378639000,-424.933373,0.00015,2]
[422774231,1779378639000,-156.0,0.00015,2]
[422774252,1779378639000,-810.885163,0.00015068,2]
[422774246,1779378639000,-550.37653087,0.00015004,2]
[422774254,1779378639000,-810.885163,0.00015068,2]
[422774280,1779378639000,-1540.50200059,0.00015132,2]
[422774256,1779378639000,-810.885163,0.00015068,2]
[422774270,1779378639000,-1423.46,0.00015083,2]
[422774264,1779378639000,-810.885163,0.00015068,2]
[422774268,1779378639000,-550.37653087,0.00015077,2]
[422774266,1779378639000,-810.885163,0.00015068,2]
[422774274,1779378639000,-550.37653087,0.00015102,2]
[422774272,1779378639000,-550.37653087,0.00015091,2]
[422774276,1779378639000,-550.37653087,0.00015118,2]
[422774278,1779378639000,-550.37653087,0.00015128,2]
[422774286,1779378639000,-1540.50200059,0.00015174,2]
[422774288,1779378639000,-215.23956962,0.0001518,2]
[422774237,1779378639000,-424.933373,0.00015,2]
[422774284,1779378639000,-1540.50200059,0.00015144,2]
[422774282,1779378639000,-1540.50200059,0.00015136,2]
[422774258,1779378639000,-810.885163,0.00015068,2]
[422774242,1779378639000,-151.0,0.00015,2]
[422774216,1779378639000,-352.828046,0.00015,2]
[422774229,1779378639000,-156.0,0.00015,2]
[422774291,1779378639000,-282.15,0.0001526,14]
[422774177,1779378639000,-151.0,0.00015,2]
[422774171,1779378639000,-151.0,0.00015,2]
[422774175,1779378639000,-151.0,0.00015,2]
[422774181,1779378639000,-151.0,0.00015,2]
[422774173,1779378639000,-151.0,0.00015,2]
[422774179,1779378639000,-151.0,0.00015,2]
[422774191,1779378639000,-236.750328,0.00015,2]
[422774193,1779378639000,-236.750328,0.00015,2]
[422774195,1779378639000,-236.750328,0.00015,2]
[422774183,1779378639000,-151.0,0.00015,2]
[422774187,1779378639000,-236.750328,0.00015,2]
[422774185,1779378639000,-151.0,0.00015,2]
[422774189,1779378639000,-236.750328,0.00015,2]
[422774197,1779378639000,-236.750328,0.00015,2]
[422774199,1779378639000,-236.750328,0.00015,2]
[422774210,1779378639000,-352.828046,0.00015,2]
[422774214,1779378639000,-352.828046,0.00015,2]
[422774212,1779378639000,-352.828046,0.00015,2]
[422774206,1779378639000,-352.828046,0.00015,2]
[422774203,1779378639000,-151.0,0.00015,2]
[422774201,1779378639000,-236.750328,0.00015,2]
[422774205,1779378639000,-150.0,0.00015,2]
[422774218,1779378639000,-352.828046,0.00015,2]
[422774208,1779378639000,-352.828046,0.00015,2]
[422774220,1779378639000,-352.828046,0.00015,2]
[422774222,1779378639000,-1000.0,0.00015,2]
[422774224,1779378639000,-401.73290602,0.00015,2]
[422774227,1779378639000,-156.0,0.00015,2]
[422774239,1779378639000,-424.933373,0.00015,2]
[422774292,1779378639000,-1339.41,0.00015283,2]
[422774412,1779378639000,-1000.0,0.000165,2]
[422774297,1779378639000,-1517.64,0.000153,2]
[422774372,1779378639000,-405.193774,0.00016438,2]
[422774364,1779378639000,-151.0,0.00016438,2]
[422774370,1779378639000,-405.193774,0.00016438,2]
[422774362,1779378639000,-900.0,0.00016438,2]
[422774374,1779378639000,-405.193774,0.00016438,2]
[422774376,1779378639000,-405.193774,0.00016438,2]
[422774378,1779378639000,-405.193774,0.00016438,2]
[422774380,1779378639000,-405.193774,0.00016438,2]
[422774391,1779378639000,-3027.413923,0.00016438,2]
[422774397,1779378639000,-3027.413923,0.00016438,2]
[422774395,1779378639000,-3027.413923,0.00016438,2]
[422774393,1779378639000,-3027.413923,0.00016438,2]
[422774399,1779378639000,-3027.413923,0.00016438,2]
[422774383,1779378639000,-405.193774,0.00016438,2]
[422774386,1779378639000,-230.06,0.00016438,2]
[422774389,1779378639000,-3027.413923,0.00016438,2]
[422774384,1779378639000,-405.193774,0.00016438,2]
[422774401,1779378639000,-3027.413923,0.00016438,2]
[422774405,1779378639000,-274.916363,0.00016488,2]
[422774403,1779378639000,-3027.413923,0.00016438,2]
[422774407,1779378639000,-6612.90032977,0.000165,2]
[422774415,1779378639000,-187.4,0.00016591,2]
[422774417,1779378639000,-252.64087241,0.00016712,2]
[422774410,1779378639000,-13058.97772215,0.000165,2]
[422774419,1779378639000,-169.89,0.00016712,2]
[422774421,1779378639000,-151.63068737,0.000169,2]
[422774427,1779378639000,-1370.19250317,0.00017028,21]
[422774295,1779378639000,-1540.50200059,0.00015284,2]
[422774425,1779378639000,-1339.41,0.00016981,2]
[422774360,1779378639000,-859.6947049,0.00016438,2]
[422774358,1779378639000,-3193.7,0.00016438,2]
[422774423,1779378639000,-433.0,0.00016935,2]
[422774354,1779378639000,-200.0,0.0001634,2]
[422774368,1779378639000,-155.907713,0.00016438,2]
[422774301,1779378639000,-300.0,0.00015459,2]
[422774314,1779378639000,-206.16602365,0.0001546,2]
[422774316,1779378639000,-2500.0,0.0001546,2]
[422774304,1779378639000,-2500.0,0.00015459,2]
[422774306,1779378639000,-311.3616053,0.0001546,2]
[422774308,1779378639000,-193.0,0.0001546,2]
[422774318,1779378639000,-300.0,0.0001546,2]
[422774320,1779378639000,-331.47781579,0.0001546,2]
[422774310,1779378639000,-250.0,0.0001546,2]
[422774312,1779378639000,-600.0,0.0001546,2]
[422774322,1779378639000,-1237.82230924,0.000155,2]
[422774324,1779378639000,-150.0,0.00015688,2]
[422774326,1779378639000,-367.0,0.00015699,2]
[422774298,1779378639000,-27635.4955173,0.0001541,2]
[422774327,1779378639000,-255.0,0.00015723,2]
[422774329,1779378639000,-420.0,0.00015769,2]
[422774366,1779378639000,-151.0,0.00016438,2]
[422774352,1779378639000,-190.961608,0.00016251,2]
[422774350,1779378639000,-226.88542332,0.000162,2]
[422774348,1779378639000,-192.99351,0.0001619,2]
[422774344,1779378639000,-226.88542332,0.000161,2]
[422774356,1779378639000,-1216.20415735,0.00016422,2]
[422774335,1779378639000,-150.0,0.000159,2]
[422774342,1779378639000,-200.89459053,0.000161,7]
[422774340,1779378639000,-226.88542332,0.00016,2]
[422774331,1779378639000,-2271.20539281,0.00015807,2]
[422774333,1779378639000,-1680.0,0.00015836,2]
[422774338,1779378639000,-300.0,0.00016,2]
[422774346,1779378639000,-189.368648,0.0001617,2]
[422774528,1779378640000,-1019.70474168,0.00017808,2]
[422774532,1779378640000,-1019.70474168,0.00017808,2]
[422774518,1779378640000,-1019.70474168,0.00017808,2]
[422774534,1779378640000,-1019.70474168,0.00017808,2]
[422774494,1779378640000,-1019.70474168,0.00017808,2]
[422774503,1779378640000,-1019.70474168,0.00017808,2]
[422774509,1779378640000,-1019.70474168,0.00017808,2]
[422774507,1779378640000,-1019.70474168,0.00017808,2]
[422774487,1779378640000,-1019.70474168,0.00017808,2]
[422774526,1779378640000,-1019.70474168,0.00017808,2]
[422774505,1779378640000,-1019.70474168,0.00017808,2]
[422774485,1779378640000,-1019.70474168,0.00017808,2]
[422774511,1779378640000,-1019.70474168,0.00017808,2]
[422774513,1779378640000,-1019.70474168,0.00017808,2]
[422774530,1779378640000,-1019.70474168,0.00017808,2]
[422774524,1779378640000,-1019.70474168,0.00017808,2]
[422774520,1779378640000,-1019.70474168,0.00017808,2]
[422774536,1779378640000,-1019.70474168,0.00017808,2]
[422774522,1779378640000,-200.0,0.00017808,2]
[422774538,1779378640000,-1019.70474168,0.00017808,2]
[422774540,1779378640000,-1019.70474168,0.00017808,2]
[422774543,1779378640000,-1019.70474168,0.00017808,2]
[422774547,1779378640000,-1019.70474168,0.00017808,2]
[422774545,1779378640000,-1019.70474168,0.00017808,2]
[422774549,1779378640000,-1019.70474168,0.00017808,2]
[422774490,1779378640000,-1019.70474168,0.00017808,2]
[422774515,1779378640000,-1019.70474168,0.00017808,2]
[422774492,1779378640000,-1019.70474168,0.00017808,2]
[422774462,1779378640000,-151.0,0.00017808,2]
[422774498,1779378640000,-1019.70474168,0.00017808,2]
[422774428,1779378640000,-214.0,0.0001726,2]
[422774432,1779378640000,-1612.0,0.00017419,2]
[422774430,1779378640000,-587.0,0.00017268,2]
[422774435,1779378640000,-913.62,0.00017572,2]
[422774447,1779378640000,-151.0,0.00017805,2]
[422774445,1779378640000,-403.0,0.000177,5]
[422774451,1779378640000,-151.0,0.00017808,2]
[422774442,1779378640000,-792.68419263,0.000177,2]
[422774453,1779378640000,-405.193774,0.00017808,2]
[422774439,1779378640000,-6131.18,0.00017572,2]
[422774449,1779378640000,-180.979626,0.00017808,2]
[422774437,1779378640000,-433.5,0.00017572,2]
[422774456,1779378640000,-405.193774,0.00017808,2]
[422774458,1779378640000,-405.193774,0.00017808,2]
[422774464,1779378640000,-175.70569,0.00017808,2]
[422774469,1779378640000,-352.828046,0.00017808,2]
[422774466,1779378640000,-352.828046,0.00017808,2]
[422774477,1779378640000,-424.933373,0.00017808,2]
[422774473,1779378640000,-352.828046,0.00017808,2]
[422774471,1779378640000,-352.828046,0.00017808,2]
[422774475,1779378640000,-424.933373,0.00017808,2]
[422774479,1779378640000,-424.933373,0.00017808,2]
[422774460,1779378640000,-405.193774,0.00017808,2]
[422774559,1779378640000,-1019.70474168,0.00017808,2]
[422774481,1779378640000,-424.933373,0.00017808,2]
[422774483,1779378640000,-151.0,0.00017808,2]
[422774496,1779378640000,-1019.70474168,0.00017808,2]
[422774500,1779378640000,-1019.70474168,0.00017808,2]
[422774553,1779378640000,-1019.70474168,0.00017808,2]
[422774619,1779378640000,-4002.36523711,0.000179,2]
[422774555,1779378640000,-1019.70474168,0.00017808,2]
[422774629,1779378640000,-17343.58269409,0.000179,2]